bitfinex-derivatives/quotes_BTCF0:USTF0_20260107
["timestamp","ask_amount","ask_price","bid_price","bid_amount"]
[1767779076520,0.01307126,91859.0,91805.0,0.0109]
[1767779076521,0.09550987,91823.0,91805.0,0.0109]
[1767779077735,0.09550987,91823.0,91805.0,0.01396332]
[1767779077921,0.10640887,91820.0,91797.0,0.010901]
[1767779078121,0.10640887,91820.0,91795.0,0.0240414]
[1767779078428,0.09550987,91818.0,91799.0,0.010901]
[1767779078624,0.09550987,91818.0,91802.0,0.010901]
[1767779078825,0.09550987,91818.0,91796.0,0.0240414]
[1767779079018,0.09550987,91818.0,91797.0,0.0240414]
[1767779079537,0.12397121,91824.0,91800.0,0.02342426]
[1767779079828,0.12397121,91823.0,91800.0,0.02342426]
[1767779080033,0.12397121,91823.0,91807.0,0.0109]
[1767779080034,0.09550987,91823.0,91807.0,0.0109]
[1767779080232,0.09550987,91823.0,91809.0,0.0109]
[1767779080621,0.010897,91833.0,91811.0,0.010899]
[1767779082131,0.010897,91836.0,91813.0,0.010899]
[1767779082330,0.010894,91858.0,91813.0,0.010899]
[1767779082638,0.02846134,91833.0,91813.0,0.010899]
[1767779082836,0.010896,91841.0,91819.0,0.010899]
[1767779083235,0.010896,91841.0,91795.0,0.0142103]
[1767779083236,0.010898,91823.0,91799.0,0.010901]
[1767779083438,0.010898,91823.0,91795.0,0.0142103]
[1767779083439,0.0109,91812.0,91795.0,0.0142103]
[1767779083732,0.10641087,91803.0,91781.0,0.010903]
[1767779083941,0.10641087,91801.0,91780.0,0.010903]
[1767779084135,0.09550987,91801.0,91769.0,0.10129931]
[1767779084439,0.09550987,91799.0,91778.0,0.010904]
[1767779084835,0.09550987,91799.0,91781.0,0.010903]
[1767779085029,0.09550987,91799.0,91775.0,0.11873493]
[1767779085341,0.09550987,91799.0,91777.0,0.11873493]
[1767779085539,0.09550987,91799.0,91784.0,0.010903]
[1767779086040,0.12397121,91807.0,91786.0,0.010902]
[1767779087243,0.09550987,91806.0,91786.0,0.010902]
[1767779087939,0.010901,91799.0,91778.0,0.0904007]
[1767779088142,0.09550987,91799.0,91782.0,0.010903]
[1767779088644,0.09550987,91804.0,91785.0,0.010903]
[1767779088839,0.12397121,91802.0,91785.0,0.010903]
[1767779089034,0.12397121,91801.0,91781.0,0.010903]
[1767779089838,0.12397121,91800.0,91781.0,0.010903]
[1767779090038,0.12397121,91799.0,91777.0,0.010904]
[1767779090234,0.12397121,91794.0,91779.0,0.010903]
[1767779090446,0.12397121,91794.0,91776.0,0.010904]
[1767779090633,0.12397121,91794.0,91778.0,0.010903]
[1767779091637,0.12397121,91794.0,91781.0,0.010903]
[1767779092042,0.09550987,91794.0,91781.0,0.010903]
[1767779092738,0.02846134,91799.0,91783.0,0.010903]
[1767779093932,0.02846134,91799.0,91779.0,0.010903]
[1767779094134,0.02846134,91799.0,91782.0,0.010903]
[1767779094843,0.010901,91803.0,91782.0,0.010903]
[1767779094844,0.12397121,91798.0,91782.0,0.010903]
[1767779095545,0.12397121,91798.0,91785.0,0.010903]
[1767779095936,0.010899,91820.0,91779.0,0.010903]
[1767779095937,0.12397121,91795.0,91779.0,0.010903]
[1767779096236,0.12397121,91795.0,91782.0,0.010903]
[1767779096441,0.09550987,91795.0,91782.0,0.010903]
[1767779096643,0.09550987,91795.0,91778.0,0.010903]
[1767779096947,0.09550987,91795.0,91781.0,0.010903]
[1767779098249,0.09550987,91795.0,91777.0,0.010904]
[1767779098438,0.09550987,91795.0,91781.0,0.010903]
[1767779098848,0.12397121,91795.0,91777.0,0.010904]
[1767779099149,0.02846134,91791.0,91769.0,0.12963354]
[1767779100048,0.02846134,91791.0,91776.0,0.010904]
[1767779100347,0.09550987,91792.0,91778.0,0.010903]
[1767779100551,0.09550987,91792.0,91774.0,0.010904]
[1767779100749,0.02710549,91789.0,91770.0,0.010904]
[1767779100941,0.1210361,91788.0,91769.0,0.10129931]
[1767779101141,0.1210361,91786.0,91769.0,0.10129931]
[1767779101434,0.1210361,91779.0,91769.0,4e-07]
[1767779101639,0.12175155,91773.0,91755.0,0.010906]
[1767779101844,0.09387574,91772.0,91755.0,0.010906]
[1767779102040,0.09387574,91786.0,91761.0,0.12283329]
[1767779102348,0.09387574,91792.0,91769.0,0.12283329]
[1767779102843,0.09387574,91780.0,91757.0,0.09621894]
[1767779103035,0.010902,91793.0,91747.0,0.09268]
[1767779103036,0.03877981,91772.0,91749.0,0.02661435]
[1767779103238,0.12175155,91771.0,91750.0,0.010907]
[1767779103439,0.12175155,91769.0,91753.0,0.01411332]
[1767779103646,0.09387574,91768.0,91753.0,0.01411332]
[1767779103839,0.02787581,91768.0,91753.0,0.01411332]
[1767779104045,0.09387574,91765.0,91753.0,0.00010248]
[1767779104236,0.09387574,91761.0,91747.0,0.09268]
[1767779104441,0.09387574,91757.0,91747.0,0.09268]
[1767779105447,8.674e-05,91756.0,91747.0,0.09268]
[1767779106438,8.674e-05,91756.0,91739.0,0.00218011]
[1767779107654,8.674e-05,91756.0,91739.0,0.01633861]
[1767779107839,8.674e-05,91756.0,91739.0,0.00218011]
[1767779108952,0.02787581,91754.0,91739.0,0.00218011]
[1767779109148,0.12175155,91754.0,91739.0,0.00218011]
[1767779109347,0.12175155,91753.0,91739.0,0.00218011]
[1767779110352,0.12175155,91752.0,91739.0,0.00218011]
[1767779110541,0.12175155,91752.0,91735.0,0.01357788]
[1767779110740,0.12175155,91752.0,91733.0,0.010909]
[1767779111148,0.12175155,91752.0,91733.0,0.02456467]
[1767779111345,0.12175155,91752.0,91733.0,0.11293473]
[1767779111546,0.12175155,91752.0,91733.0,0.10202573]
[1767779111748,0.12175155,91750.0,91733.0,0.01365567]
[1767779111947,0.12175155,91750.0,91728.0,0.010909]
[1767779112154,0.12175155,91750.0,91731.0,0.010909]
[1767779112356,0.12175155,91750.0,91728.0,0.01404599]
[1767779112653,0.12175155,91750.0,91727.0,0.03752435]
[1767779113050,0.12175155,91749.0,91727.0,0.03752435]
[1767779113643,0.12175155,91749.0,91730.0,0.010909]
[1767779114253,0.01115616,91756.0,91727.0,0.12930684]
[1767779114254,0.12175155,91746.0,91727.0,0.10269249]
[1767779114439,0.02812597,91756.0,91735.0,0.02661435]
[1767779114644,0.00025016,91756.0,91736.0,0.13374129]
[1767779115352,0.12175155,91755.0,91735.0,0.010909]
[1767779116557,0.09387574,91755.0,91736.0,0.02661435]
[1767779116757,0.00025016,91756.0,91740.0,0.010908]
[1767779116957,0.00025016,91756.0,91740.0,0.03752235]
[1767779117258,0.03878081,91766.0,91743.0,0.03752235]
[1767779117760,0.13265655,91766.0,91743.0,0.03752235]
[1767779117959,0.010905,91762.0,91743.0,0.02661435]
[1767779119859,0.010906,91759.0,91741.0,0.09621894]
[1767779120160,0.12175155,91754.0,91739.0,0.00016351]
[1767779120953,0.02787581,91752.0,91739.0,0.00016351]
[1767779122953,0.02787581,91750.0,91735.0,0.010909]
[1767779123147,0.010906,91756.0,91735.0,0.010909]
[1767779123148,0.12175155,91749.0,91735.0,0.010909]
[1767779123461,0.09387574,91749.0,91735.0,0.010909]
[1767779123648,0.02787581,91754.0,91735.0,0.010909]
[1767779123848,0.12175155,91754.0,91735.0,0.010909]
[1767779124150,0.12175155,91753.0,91735.0,0.010909]
[1767779124350,0.12175155,91752.0,91735.0,0.010909]
[1767779124552,0.12175155,91751.0,91732.0,0.010909]
[1767779124857,0.12175155,91751.0,91729.0,0.010909]
[1767779125052,0.09387574,91750.0,91729.0,0.010909]
[1767779125355,0.12175155,91750.0,91731.0,0.010909]
[1767779125549,0.12175155,91750.0,91733.0,0.010909]
[1767779126658,0.12175155,91742.0,91727.0,0.01413072]
[1767779126960,0.12175155,91742.0,91719.0,0.09621894]
[1767779127353,0.12175155,91742.0,91726.0,0.10626681]
[1767779127558,0.010908,91741.0,91726.0,0.10626681]
[1767779128662,0.010908,91741.0,91726.0,0.19500152]
[1767779129250,0.10478374,91741.0,91739.0,1.1e-07]
[1767779129758,0.010908,91737.0,91726.0,0.19500152]
[1767779130151,0.010908,91737.0,91726.0,0.10626681]
[1767779130759,0.02787581,91744.0,91726.0,0.10626681]
[1767779131261,0.02787581,91743.0,91726.0,0.10626681]
[1767779131761,0.010908,91739.0,91726.0,0.10626681]
[1767779133459,0.02787581,91743.0,91726.0,0.10626681]
[1767779133460,0.010909,91736.0,91726.0,0.10626681]
[1767779133653,0.02787581,91743.0,91726.0,0.10626681]
[1767779135055,0.010908,91740.0,91726.0,0.10626681]
[1767779135267,0.02787581,91743.0,91726.0,0.10626681]
[1767779135670,0.09387574,91744.0,91726.0,0.10626681]
[1767779135965,0.010908,91738.0,91726.0,0.10626681]
[1767779136367,0.11865095,91742.0,91726.0,0.09268]
[1767779136768,0.09198776,91742.0,91726.0,0.09268]
[1767779137169,0.010908,91738.0,91726.0,0.09268]
[1767779137772,0.010906,91757.0,91717.0,0.010911]
[1767779137773,0.010909,91732.0,91717.0,0.02651311]
[1767779137958,0.010909,91729.0,91714.0,0.09409968]
[1767779138160,0.010909,91729.0,91714.0,0.12061279]
[1767779138361,0.010909,91732.0,91714.0,0.13404693]
[1767779138563,0.010909,91732.0,91720.0,0.0749808]
[1767779140474,0.09198776,91737.0,91717.0,0.08770481]
[1767779140774,0.010907,91749.0,91720.0,0.0749808]
[1767779140775,0.11865095,91739.0,91720.0,0.0749808]
[1767779140974,0.11865095,91739.0,91716.0,0.02651311]
[1767779141174,0.11865095,91739.0,91720.0,0.0749808]
[1767779142078,0.010909,91735.0,91720.0,0.0749808]
[1767779144078,0.010909,91733.0,91720.0,0.0749808]
[1767779144576,0.010909,91730.0,91720.0,0.0749808]
[1767779144978,0.010909,91731.0,91714.0,0.01343414]
[1767779145178,0.010909,91731.0,91713.0,0.02651311]
[1767779145567,0.010909,91731.0,91714.0,0.02651311]
[1767779146272,0.010909,91731.0,91714.0,0.12512218]
[1767779146778,0.010909,91734.0,91720.0,0.0749808]
[1767779147282,0.010909,91734.0,91717.0,0.02651311]
[1767779147471,0.010909,91734.0,91720.0,0.0749808]
[1767779148069,0.00016351,91736.0,91717.0,0.12061279]
[1767779148375,0.010909,91735.0,91720.0,0.0749808]
[1767779149679,0.00016351,91736.0,91717.0,0.09409968]
[1767779149680,0.010909,91733.0,91717.0,0.09409968]
[1767779149879,0.010909,91733.0,91720.0,0.0749808]
[1767779150081,0.010909,91733.0,91717.0,0.12061279]
[1767779150282,0.010909,91733.0,91720.0,0.0749808]
[1767779150578,0.010909,91730.0,91720.0,0.0749808]
[1767779150780,0.010909,91733.0,91720.0,0.0749808]
[1767779150984,0.010909,91729.0,91713.0,0.0396771]
[1767779151280,0.01091,91726.0,91713.0,0.01316399]
[1767779151468,0.01091,91726.0,91710.0,0.0749808]
[1767779152180,0.01091,91726.0,91710.0,0.10149391]
[1767779152682,0.01091,91726.0,91710.0,0.11471772]
[1767779152882,0.01091,91724.0,91710.0,0.11471772]
[1767779153182,0.01091,91724.0,91710.0,0.03973692]
[1767779153384,0.01091,91724.0,91710.0,0.11471772]
[1767779154086,0.01091,91727.0,91710.0,0.11471772]
[1767779154582,0.01091,91727.0,91710.0,0.03973692]
[1767779154976,0.01091,91727.0,91710.0,0.11471772]
[1767779155170,0.01091,91727.0,91710.0,0.03973692]
[1767779155384,0.01091,91725.0,91710.0,0.01322381]
[1767779155584,0.01091,91725.0,91710.0,0.0749808]
[1767779156576,0.01091,91725.0,91710.0,0.01348865]
[1767779156883,0.01091,91725.0,91709.0,0.01018082]
[1767779157086,0.01091,91725.0,91710.0,0.0749808]
[1767779157781,0.01091,91725.0,91710.0,0.08815616]
[1767779157970,0.02428663,91730.0,91710.0,0.11466927]
[1767779158175,0.02428663,91730.0,91711.0,0.02651311]
[1767779158374,0.01091,91727.0,91711.0,0.02651311]
[1767779158976,0.01091,91724.0,91711.0,0.02651311]
[1767779159275,0.01091,91724.0,91710.0,0.08815616]
[1767779159276,0.01091,91724.0,91710.0,0.01317536]
[1767779159477,0.01091,91727.0,91710.0,0.0749808]
[1767779159678,0.09848064,91725.0,91710.0,0.08800195]
[1767779159886,0.09848064,91725.0,91710.0,0.0749808]
[1767779160086,0.01091,91727.0,91710.0,0.0749808]
[1767779160286,0.01091,91727.0,91709.0,0.01018082]
[1767779160687,0.01091,91727.0,91709.0,0.02320463]
[1767779160984,0.09848064,91723.0,91709.0,0.01018082]
[1767779161177,0.03399197,91721.0,91709.0,0.01018082]
[1767779161378,0.01091,91721.0,91709.0,0.01018082]
[1767779161578,0.02231665,91719.0,91709.0,0.01018082]
[1767779161778,0.010911,91719.0,91709.0,0.01018082]
[1767779162790,0.01091,91723.0,91709.0,0.01018082]
[1767779163183,0.010911,91719.0,91709.0,0.01018082]
[1767779164095,0.010911,91719.0,91704.0,0.09510617]
[1767779164096,0.11825208,91710.0,91689.0,0.09510617]
[1767779164284,0.12916408,91710.0,91690.0,0.17008697]
[1767779164594,0.010912,91711.0,91697.0,0.09510617]
[1767779164997,0.09331963,91716.0,91700.0,0.0749808]
[1767779164998,9.774e-05,91710.0,91700.0,0.0749808]
[1767779166794,0.010913,91702.0,91692.0,0.02505078]
[1767779166985,0.010912,91706.0,91691.0,0.09510617]
[1767779167190,0.010912,91706.0,91693.0,0.02505078]
[1767779167600,0.010912,91705.0,91694.0,0.02505078]
[1767779167788,0.010912,91709.0,91694.0,0.02505078]
[1767779167983,0.02493245,91704.0,91689.0,0.01328531]
[1767779168190,0.010912,91706.0,91691.0,0.02505078]
[1767779168389,0.010912,91706.0,91692.0,0.02505078]
[1767779168792,0.01100974,91710.0,91692.0,0.02505078]
[1767779169291,0.010912,91707.0,91692.0,0.02505078]
[1767779169596,0.010912,91707.0,91693.0,0.02505078]
[1767779169896,0.010912,91707.0,91692.0,0.12015695]
[1767779170097,0.010912,91704.0,91687.0,0.12649245]
[1767779170305,0.010912,91704.0,91690.0,0.0749808]
[1767779171091,0.010912,91704.0,91689.0,0.12015695]
[1767779171291,0.010912,91708.0,91692.0,0.02505078]
[1767779171496,0.010912,91708.0,91692.0,0.09510617]
[1767779171894,0.010912,91708.0,91693.0,0.02505078]
[1767779172503,0.010912,91704.0,91693.0,0.02505078]
[1767779172708,0.010912,91708.0,91693.0,0.02505078]
[1767779173213,0.010912,91708.0,91693.0,0.12015695]
[1767779174004,0.010912,91708.0,91693.0,0.09510617]
[1767779174215,0.010913,91695.0,91677.0,0.01302477]
[1767779175517,0.010913,91697.0,91680.0,0.0749808]
[1767779176106,0.010913,91697.0,91682.0,0.02505078]
[1767779176312,0.010913,91697.0,91683.0,0.02505078]
[1767779176716,0.010913,91697.0,91679.0,0.00218154]
[1767779176717,0.03584545,91697.0,91679.0,0.00218154]
[1767779176921,0.03584545,91697.0,91680.0,0.0749808]
[1767779177119,0.03584545,91697.0,91680.0,0.02505078]
[1767779177324,0.010913,91697.0,91680.0,0.02505078]
[1767779177519,0.010913,91697.0,91680.0,0.10003158]
[1767779177821,0.010913,91697.0,91683.0,0.02505078]
[1767779179114,0.09331963,91702.0,91682.0,9.5e-07]
[1767779179308,0.02493245,91701.0,91680.0,0.0749808]
[1767779179514,0.11825208,91701.0,91680.0,0.0749808]
[1767779180024,0.010913,91695.0,91680.0,0.0749808]
[1767779180910,0.010913,91699.0,91680.0,0.0749808]
[1767779181110,0.010913,91699.0,91681.0,0.12015695]
[1767779181322,0.0587393,91704.0,91679.0,0.00218154]
[1767779181323,0.11825208,91697.0,91679.0,0.00218154]
[1767779181618,0.11825208,91697.0,91673.0,0.008]
[1767779181619,0.010914,91690.0,91674.0,0.02505078]
[1767779181818,0.10423363,91690.0,91670.0,0.10003158]
[1767779182020,0.09331963,91689.0,91671.0,0.02505078]
[1767779182224,0.09331963,91689.0,91671.0,0.03822168]
[1767779182409,0.09331963,91689.0,91679.0,0.0749808]
[1767779182616,0.11825208,91686.0,91670.0,0.0749808]
[1767779182810,0.02493245,91691.0,91671.0,0.02505078]
[1767779183027,0.010914,91687.0,91671.0,0.02505078]
[1767779183224,0.10423363,91687.0,91666.0,0.03810465]
[1767779183420,0.10423363,91687.0,91667.0,0.02505078]
[1767779183724,0.09331963,91679.0,91662.0,0.01313632]
[1767779183925,9.774e-05,91678.0,91661.0,0.02505078]
[1767779184326,9.774e-05,91678.0,91668.0,0.0749808]
[1767779185126,9.774e-05,91678.0,91668.0,0.10003158]
[1767779185327,9.774e-05,91678.0,91668.0,0.0749808]
[1767779185522,0.010915,91686.0,91668.0,0.0749808]
[1767779186724,0.06084828,91717.0,91672.0,0.02505078]
[1767779186929,0.010914,91690.0,91672.0,0.02505078]
[1767779187127,0.010913,91697.0,91672.0,0.12015695]
[1767779187423,0.010913,91697.0,91681.0,0.12015695]
[1767779187622,0.03584545,91701.0,91681.0,0.12015695]
[1767779187824,0.010913,91698.0,91682.0,0.02505078]
[1767779188530,0.010913,91698.0,91681.0,0.09510617]
[1767779189426,0.02493245,91700.0,91681.0,0.09510617]
[1767779189633,0.010913,91696.0,91681.0,0.09510617]
[1767779190024,0.03584545,91700.0,91681.0,0.09510617]
[1767779190528,0.010913,91696.0,91681.0,0.09510617]
[1767779190729,0.010913,91697.0,91681.0,0.09510617]
[1767779191327,0.10423263,91701.0,91683.0,0.02505078]
[1767779191536,0.010913,91695.0,91682.0,0.09510617]
[1767779192337,0.0001636,91698.0,91682.0,0.09510617]
[1767779193036,0.03583437,91698.0,91679.0,0.02505078]
[1767779193430,0.03567077,91691.0,91671.0,0.0975123]
[1767779193637,0.03567077,91695.0,91676.0,0.03388591]
[1767779193837,0.0001636,91698.0,91679.0,0.13139821]
[1767779194032,0.0001636,91698.0,91681.0,0.03388591]
[1767779194334,0.010914,91691.0,91674.0,0.0975123]
[1767779194532,0.010914,91694.0,91675.0,0.03388591]
[1767779194837,0.1054346,91698.0,91677.0,0.03388591]
[1767779195933,0.010914,91692.0,91676.0,0.0975123]
[1767779196133,0.010914,91692.0,91673.0,0.03388591]
[1767779196934,0.03567077,91695.0,91673.0,0.03388591]
[1767779196935,0.04658377,91695.0,91673.0,0.03388591]
[1767779197240,0.0110766,91698.0,91680.0,0.03388591]
[1767779197842,0.0001636,91698.0,91682.0,0.03388591]
[1767779199140,0.0001636,91698.0,91682.0,0.13139821]
[1767779200839,0.0001636,91698.0,91683.0,0.03388591]
[1767779201145,0.0001636,91698.0,91684.0,0.03388591]
[1767779201344,0.0001636,91698.0,91684.0,0.13139821]
[1767779201538,0.0001636,91698.0,91685.0,0.03388591]
[1767779201938,0.0001636,91698.0,91684.0,0.0975123]
[1767779202343,0.0001636,91698.0,91684.0,0.13139821]
[1767779203436,0.0110766,91698.0,91684.0,0.13139821]
[1767779204033,0.03567077,91692.0,91681.0,0.0001636]
[1767779204235,0.010914,91694.0,91681.0,0.0001636]
[1767779204433,0.04658477,91691.0,91681.0,0.0001636]
[1767779204640,0.03567077,91690.0,91681.0,0.0001636]
[1767779204842,0.010914,91689.0,91681.0,0.0001636]
[1767779208245,0.094358,91693.0,91681.0,0.0001636]
[1767779208246,0.105272,91693.0,91681.0,0.0001636]
[1767779208637,0.010914,91693.0,91681.0,0.0001636]
[1767779211650,0.010914,91690.0,91681.0,0.0001636]
[1767779214045,0.03567077,91695.0,91681.0,0.0001636]
[1767779214254,0.010914,91692.0,91681.0,0.0001636]
[1767779214648,0.010915,91684.0,91681.0,6e-07]
[1767779214950,0.0001636,91698.0,91681.0,6e-07]
[1767779214951,0.13002877,91685.0,91681.0,6e-07]
[1767779215147,0.010915,91684.0,91681.0,6e-07]
[1767779216452,0.03567077,91686.0,91681.0,6e-07]
[1767779216653,0.010914,91688.0,91681.0,6e-07]
[1767779218056,0.04658477,91688.0,91681.0,6e-07]
[1767779219145,0.010914,91692.0,91681.0,6e-07]
[1767779220449,0.04243055,91692.0,91681.0,6e-07]
[1767779220956,0.010913,91696.0,91681.0,6e-07]
[1767779221259,0.010913,91697.0,91681.0,6e-07]
[1767779221456,0.0001636,91698.0,91684.0,0.09343874]
[1767779221660,0.03151655,91708.0,91687.0,0.03172165]
[1767779222054,0.03386616,91706.0,91687.0,0.03172165]
[1767779222354,0.03386616,91705.0,91686.0,0.09772434]
[1767779222556,0.03386616,91704.0,91686.0,0.09772434]
[1767779223255,0.010913,91700.0,91686.0,0.09772434]
[1767779223956,0.010913,91700.0,91683.0,0.03172165]
[1767779226161,0.010913,91700.0,91683.0,0.12944599]
[1767779228362,0.010913,91697.0,91683.0,0.12944599]
[1767779228564,0.010913,91697.0,91684.0,0.03172165]
[1767779229763,0.010913,91695.0,91684.0,0.03172165]
[1767779229963,0.03386616,91700.0,91681.0,0.03172225]
[1767779231369,0.010914,91687.0,91681.0,6e-07]
[1767779231569,0.03386616,91698.0,91681.0,6e-07]
[1767779232265,0.13163292,91694.0,91681.0,6e-07]
[1767779232467,0.010915,91683.0,91681.0,6e-07]
[1767779233165,0.09776676,91682.0,91681.0,6e-07]
[1767779233364,0.010915,91683.0,91681.0,6e-07]
[1767779233560,0.04478116,91683.0,91681.0,6e-07]
[1767779233763,0.010915,91683.0,91681.0,6e-07]
[1767779243176,0.03386616,91698.0,91677.0,3.4e-07]
[1767779243177,0.09776676,91697.0,91677.0,3.4e-07]
[1767779243372,0.03386616,91696.0,91677.0,3.4e-07]
[1767779243678,0.13163292,91694.0,91661.0,0.02507458]
[1767779243973,0.010915,91684.0,91663.0,0.010917]
[1767779244177,0.010915,91684.0,91666.0,0.010917]
[1767779244575,0.13163292,91684.0,91657.0,0.10086225]
[1767779244972,0.09776676,91684.0,91657.0,0.10086225]
[1767779245273,0.010915,91680.0,91664.0,0.09772434]
[1767779245576,0.010915,91680.0,91667.0,0.03172165]
[1767779245765,0.010916,91678.0,91667.0,0.03172165]
[1767779246374,0.010915,91678.0,91664.0,0.03172165]
[1767779246878,0.010915,91681.0,91665.0,0.03172165]
[1767779247885,0.010915,91682.0,91666.0,0.03172165]
[1767779248483,0.010915,91680.0,91670.0,0.07506402]
[1767779248973,0.010915,91680.0,91666.0,0.03172165]
[1767779249171,0.010915,91680.0,91670.0,0.07506402]
[1767779249661,0.010915,91680.0,91666.0,0.03172165]
[1767779249865,0.010915,91680.0,91670.0,0.07506402]
[1767779250075,0.09776676,91686.0,91670.0,0.07506402]
[1767779250670,0.010915,91682.0,91670.0,0.07506402]
[1767779251172,0.010915,91682.0,91668.0,0.03172165]
[1767779251370,0.010915,91682.0,91670.0,0.07506402]
[1767779251868,0.010915,91682.0,91668.0,0.03172165]
[1767779252069,0.0696287,91700.0,91673.0,0.03125092]
[1767779252070,0.12268366,91692.0,91673.0,0.03125092]
[1767779252279,0.09246114,91692.0,91673.0,0.03125092]
[1767779252477,0.09246114,91692.0,91680.0,0.07506402]
[1767779252666,0.010915,91686.0,91680.0,0.07506402]
[1767779252869,0.010915,91686.0,91676.0,0.07506402]
[1767779253171,0.010914,91693.0,91678.0,0.03125092]
[1767779253370,0.010914,91693.0,91680.0,0.07506402]
[1767779254284,0.010913,91697.0,91681.0,0.03125092]
[1767779254578,0.12268366,91714.0,91691.0,0.03125092]
[1767779254778,0.010913,91703.0,91692.0,0.03125092]
[1767779255075,0.09464196,91709.0,91688.0,0.03125092]
[1767779255382,0.12268366,91708.0,91688.0,0.03125092]
[1767779255774,0.010913,91700.0,91688.0,0.03125092]
[1767779256081,0.12268366,91698.0,91680.0,0.07506402]
[1767779256274,0.12268366,91693.0,91671.0,0.03125092]
[1767779256471,0.12268366,91685.0,91669.0,0.010916]
[1767779256671,0.010914,91687.0,91671.0,0.03125092]
[1767779257074,0.010915,91682.0,91670.0,0.07506402]
[1767779257282,0.08359866,91686.0,91670.0,0.07506402]
[1767779257977,0.03022252,91685.0,91670.0,0.07506402]
[1767779258182,0.010915,91682.0,91670.0,0.07506402]
[1767779258572,0.04113752,91682.0,91663.0,0.03125092]
[1767779258785,0.04113752,91682.0,91670.0,0.07506402]
[1767779259274,0.010915,91679.0,91670.0,0.07506402]
[1767779259481,0.010915,91679.0,91662.0,0.09399609]
[1767779259980,0.010916,91676.0,91662.0,0.09399609]
[1767779261079,0.010916,91676.0,91660.0,0.07506402]
[1767779261284,0.010915,91680.0,91661.0,0.03125092]
[1767779261672,0.010916,91677.0,91670.0,0.07506402]
[1767779261882,0.010916,91677.0,91667.0,0.07506402]
[1767779262184,0.010916,91677.0,91661.0,0.03125092]
[1767779262476,0.010916,91677.0,91662.0,0.03125092]
[1767779263582,0.010915,91681.0,91662.0,0.03125092]
[1767779265673,0.010915,91681.0,91670.0,0.07506402]
[1767779265978,0.010915,91684.0,91670.0,0.07506402]
[1767779266184,0.010915,91680.0,91670.0,0.07506402]
[1767779266776,0.010916,91676.0,91670.0,2e-08]
[1767779266984,0.010916,91673.0,91660.0,0.16906011]
[1767779267186,0.12268366,91678.0,91660.0,0.07506402]
[1767779267481,0.010916,91674.0,91660.0,0.10631494]
[1767779267668,0.010916,91674.0,91661.0,0.03125092]
[1767779268081,0.010916,91674.0,91662.0,0.03125092]
[1767779269083,0.010916,91677.0,91662.0,0.03125092]
[1767779269487,0.010916,91677.0,91662.0,0.03121092]
[1767779270683,0.09246114,91681.0,91661.0,0.09399609]
[1767779270884,0.010916,91677.0,91661.0,0.09399609]
[1767779271482,0.010916,91677.0,91661.0,0.12524701]
[1767779272486,0.010916,91677.0,91662.0,0.03125092]
[1767779273080,0.010916,91677.0,91660.0,0.07506402]
[1767779273582,0.03022252,91679.0,91661.0,0.03125092]
[1767779273780,0.08597802,91690.0,91660.0,0.07506402]
[1767779273781,0.03022252,91677.0,91660.0,0.07506402]
[1767779274181,0.03022252,91677.0,91644.0,0.0928]
[1767779274182,0.010918,91661.0,91642.0,0.01092]
[1767779274382,0.03022252,91658.0,91642.0,0.02551018]
[1767779274687,0.09246114,91659.0,91642.0,0.01459018]
[1767779274891,0.09246114,91659.0,91641.0,0.03125092]
[1767779275281,0.00011337,91658.0,91641.0,0.04568493]
[1767779275881,0.010918,91657.0,91641.0,0.03125092]
[1767779276693,0.010918,91654.0,91641.0,0.03125092]
[1767779277388,0.01103137,91658.0,91641.0,0.03125092]
[1767779277594,0.010918,91656.0,91641.0,0.03125092]
[1767779279093,0.010918,91656.0,91643.0,0.03125092]
[1767779279394,0.04114052,91656.0,91640.0,0.07506402]
[1767779279584,0.010918,91655.0,91646.0,0.07506402]
[1767779279789,0.00011337,91658.0,91640.0,0.07506402]
[1767779279790,0.03006978,91658.0,91640.0,0.07506402]
[1767779280093,0.03006978,91658.0,91636.0,0.10696858]
[1767779280094,0.02995641,91655.0,91636.0,0.13582496]
[1767779280294,0.00011337,91658.0,91642.0,0.09896858]
[1767779280590,0.00011337,91658.0,91641.0,0.09896858]
[1767779281394,0.010918,91655.0,91641.0,0.09896858]
[1767779281596,0.010918,91655.0,91642.0,0.02991249]
[1767779281790,0.02937933,91654.0,91640.0,0.07506402]
[1767779281987,0.010918,91653.0,91640.0,0.07506402]
[1767779282582,0.0294927,91658.0,91640.0,0.07506402]
[1767779282583,0.010918,91657.0,91640.0,0.07506402]
[1767779282792,0.010878,91657.0,91640.0,0.07506402]
[1767779282990,0.01103137,91658.0,91645.0,0.02991249]
[1767779283387,0.01103137,91658.0,91644.0,0.09106483]
[1767779283584,0.01103137,91658.0,91641.0,0.02991249]
[1767779283796,0.010918,91654.0,91641.0,0.02991249]
[1767779284185,0.01103137,91658.0,91641.0,0.02991249]
[1767779284385,0.01103137,91658.0,91643.0,0.02991249]
[1767779284585,0.01103137,91658.0,91648.0,0.07506402]
[1767779284986,0.00011337,91658.0,91643.0,0.02991249]
[1767779285601,0.00011337,91658.0,91648.0,0.07506402]
[1767779286497,0.01103137,91658.0,91648.0,0.07506402]
[1767779287003,0.01103137,91658.0,91643.0,0.02991249]
[1767779287301,0.00011337,91658.0,91643.0,0.02991249]
[1767779287696,0.00011337,91658.0,91643.0,0.12097732]
[1767779287904,0.00011337,91658.0,91644.0,0.02991249]
[1767779288502,0.01103137,91658.0,91644.0,0.02991249]
[1767779288704,0.01103137,91658.0,91648.0,0.07506402]
[1767779289412,0.00011337,91658.0,91648.0,0.07506402]
[1767779289598,0.01103137,91658.0,91648.0,0.07506402]
[1767779289797,0.00011337,91658.0,91648.0,0.07506402]
[1767779290104,0.00011337,91658.0,91644.0,0.02991249]
[1767779290303,0.01103137,91658.0,91640.0,0.07506402]
[1767779290493,0.01103137,91658.0,91641.0,0.09106483]
[1767779290697,0.01103137,91658.0,91642.0,0.02991249]
[1767779290899,0.01103137,91658.0,91643.0,0.02991249]
[1767779291501,0.010918,91656.0,91643.0,0.02991249]
[1767779292204,0.010918,91654.0,91643.0,0.02991249]
[1767779293993,0.010918,91657.0,91643.0,0.02991249]
[1767779294402,0.00011337,91658.0,91643.0,0.02991249]
[1767779294706,0.01103137,91658.0,91648.0,0.07506402]
[1767779294891,0.01103137,91658.0,91643.0,0.02991249]
[1767779299197,0.01103137,91658.0,91648.0,0.07506402]
[1767779299502,0.010918,91656.0,91648.0,0.07506402]
[1767779299707,0.010918,91656.0,91643.0,0.02991249]
[1767779302497,0.010918,91656.0,91640.0,0.07506402]
[1767779302706,0.010918,91656.0,91641.0,0.02991249]
[1767779303707,0.00011337,91658.0,91647.0,0.02991249]
[1767779303904,0.00011337,91658.0,91648.0,0.09106483]